Workbook

Sheet 予選
B1: Ａ
B2: № | C2: 氏 名 | D2: ハンデ | E2: 大原 | H2: 井野 | K2: 河原 | N2: 加藤 | Q2: 宮口 | T2: 森 | AA2: 勝数-負数 | AC2: 得点 | AF2: 失点 | AI2: 得失点差 | AL2: 順位
C3: 大原 祐 | D3: 120 | H3: L | K3: W | N3: L | Q3: W | T3: W | Z3: 3 | AA3: - | AB3: 2 | AC3: =Z3*120+E4+H4+K4+N4+Q4+T4 -> 483 | AF3: =AB3*120+G4+J4+M4+P4+S4+V4 -> 387 | AI3: =AC3-AF3 -> 96 | AL3: 2
B4: １ | H4: 118 | I4: - | L4: - | M4: 29 | N4: 5 | O4: - | R4: - | S4: 92 | U4: - | V4: 26
C5: 井野 泰成 | D5: 120 | E5: W | K5: L | N5: W | Q5: W | T5: W | Z5: 4 | AA5: - | AB5: 1 | AC5: =Z5*120+E6+H6+K6+N6+Q6+T6 -> 570 | AF5: =AB5*120+G6+J6+M6+P6+S6+V6 -> 414 | AI5: =AC5-AF5 -> 156 | AL5: 1
B6: ２ | F6: - | G6: 118 | K6: 90 | L6: - | O6: - | P6: 21 | R6: - | S6: 42 | U6: - | V6: 113
C7: 河原 雄也 | D7: 120 | E7: L | H7: W | N7: W | Q7: L | T7: W | Z7: 3 | AA7: - | AB7: 2 | AC7: =Z7*120+E8+H8+K8+N8+Q8+T8 -> 399 | AF7: =AB7*120+G8+J8+M8+P8+S8+V8 -> 370 | AI7: =AC7-AF7 -> 29 | AL7: 3
B8: ３ | E8: 29 | F8: - | I8: - | J8: 90 | O8: - | P8: 0 | Q8: 10 | R8: - | U8: - | V8: 40
C9: 加藤 道生 | D9: 120 | E9: W | H9: L | K9: L | Q9: W | T9: W | Z9: 3 | AA9: - | AB9: 2 | AC9: =Z9*120+E10+H10+K10+N10+Q10+T10 -> 381 | AF9: =AB9*120+G10+J10+M10+P10+S10+V10 -> 308 | AI9: =AC9-AF9 -> 73 | AL9: 4
B10: ４ | F10: - | G10: 5 | H10: 21 | I10: - | K10: 0 | L10: - | R10: - | S10: 59 | U10: - | V10: 4
C11: 宮口 高虎 | D11: 120 | E11: L | H11: L | K11: W | N11: L | T11: W | Z11: 2 | AA11: - | AB11: 3 | AC11: =Z11*120+E12+H12+K12+N12+Q12+T12 -> 433 | AF11: =AB11*120+G12+J12+M12+P12+S12+V12 -> 453 | AI11: =AC11-AF11 -> -20 | AL11: 5
B12: ５ | E12: 92 | F12: - | H12: 42 | I12: - | L12: - | M12: 10 | N12: 59 | O12: - | U12: - | V12: 83
C13: 森 三佐子 | D13: 120 | E13: L | H13: L | K13: L | N13: L | Q13: L | Z13: 0 | AA13: - | AB13: 5 | AC13: =Z13*120+E14+H14+K14+N14+Q14+T14 -> 266 | AF13: =AB13*120+G14+J14+M14+P14+S14+V14 -> 600 | AI13: =AC13-AF13 -> -334 | AL13: 6
B14: ６ | E14: 26 | F14: - | H14: 113 | I14: - | K14: 40 | L14: - | N14: 4 | O14: - | Q14: 83 | R14: -
B15: Ｂ
B16: № | C16: 氏 名 | D16: ハンデ | E16: 石塚 | H16: 中山 | K16: 河村 | N16: 東出 | Q16: 川村 | AA16: 勝数-負数 | AC16: 得点 | AF16: 失点 | AI16: 得失点差 | AL16: 順位
C17: 石塚 大介 | D17: 120 | H17: L | K17: W | N17: L | Q17: L | Z17: 1 | AA17: - | AB17: 3 | AC17: =Z17*120+E18+H18+K18+N18+Q18+T18 -> 311 | AF17: =AB17*120+G18+J18+M18+P18+S18+V18 -> 478 | AI17: =AC17-AF17 -> -167 | AL17: 5
B18: １ | H18: 6 | I18: - | L18: - | M18: 118 | N18: 79 | O18: - | Q18: 106 | R18: -
C19: 中山 周久 | D19: 120 | E19: W | K19: W | N19: L | Q19: L | Z19: 2 | AA19: - | AB19: 2 | AC19: =Z19*120+E20+H20+K20+N20+Q20+T20 -> 355 | AF19: =AB19*120+G20+J20+M20+P20+S20+V20 -> 293 | AI19: =AC19-AF19 -> 62 | AL19: 2
B20: ２ | F20: - | G20: 6 | L20: - | M20: 47 | N20: 79 | O20: - | Q20: 36 | R20: -
C21: 河村 守人 | D21: 120 | E21: L | H21: L | N21: W | Q21: L | Z21: 1 | AA21: - | AB21: 3 | AC21: =Z21*120+E22+H22+K22+N22+Q22+T22 -> 338 | AF21: =AB21*120+G22+J22+M22+P22+S22+V22 -> 419 | AI21: =AC21-AF21 -> -81 | AL21: 4
B22: ３ | E22: 118 | F22: - | H22: 47 | I22: - | O22: - | P22: 59 | Q22: 53 | R22: -
C23: 東出 章宏 | D23: 120 | E23: W | H23: W | K23: L | Q23: L | Z23: 2 | AA23: - | AB23: 2 | AC23: =Z23*120+E24+H24+K24+N24+Q24+T24 -> 304 | AF23: =AB23*120+G24+J24+M24+P24+S24+V24 -> 398 | AI23: =AC23-AF23 -> -94 | AL23: 3
B24: ４ | F24: - | G24: 79 | I24: - | J24: 79 | K24: 59 | L24: - | Q24: 5 | R24: -
C25: 川村 聡 | D25: 120 | E25: W | H25: W | K25: W | N25: W | Z25: 4 | AA25: - | AB25: 0 | AC25: =Z25*120+E26+H26+K26+N26+Q26+T26 -> 480 | AF25: =AB25*120+G26+J26+M26+P26+S26+V26 -> 200 | AI25: =AC25-AF25 -> 280 | AL25: 1
B26: ５ | F26: - | G26: 106 | I26: - | J26: 36 | L26: - | M26: 53 | O26: - | P26: 5
B28: ６

Sheet 決勝
A1: 決勝トーナメント（ローテーション１２０点先取）
C3: 大原 | L3: 大会名 令和７年２月月例会
B5: 15 | D5: b1 | L5: 会場 | N5: 札幌 スポーツビリヤードキャノン
A6: 中山 | E6: 大原 | L6: 日時 | N6: 令和７年２月２日
A8: 44 | B8: a1 | E8: 18 | F8: a2 | L8: 参加人数 | O8: １１名（ﾋﾞｼﾞﾀｰなし）
A9: 1 | C9: 2 | E9: 3 | G9: 4
A10: 井野 泰成 | C10: 中山 周久 | E10: 川村 聡 | G10: 大原 祐
A11: 札幌 | C11: 札幌 | E11: 札幌 | G11: 札幌
